[Event "Betsys MČR v online bleskovém šachu 2021"]
[Site "Chess.com"]
[Date "2021.04.17"]
[Round "11"]
[White "VojtechPlat"]
[Black "MartinHollan"]
[Result "1/2-1/2"]
[WhiteElo "2839"]
[BlackElo "2624"]
[TimeControl "180+1"]
[EndTime "10:50:21 PDT"]
[Termination "Remíza dohodou"]

1. d4 {[%clk 0:03:00.9]} 1... Nf6 {[%clk 0:02:59.6]} 2. Nf3 {[%clk 0:03:00.9]}
2... e6 {[%clk 0:02:58.9]} 3. e3 {[%clk 0:03:01.1]} 3... d5 {[%clk 0:02:57.1]}
4. Bd3 {[%clk 0:03:01.1]} 4... Bd6 {[%clk 0:02:56.3]} 5. Nbd2 {[%clk 0:03:01.2]}
5... Nbd7 {[%clk 0:02:56.2]} 6. c4 {[%clk 0:03:01.2]} 6... c6 {[%clk 0:02:52.3]}
7. O-O {[%clk 0:03:00.7]} 7... e5 {[%clk 0:02:52.6]} 8. dxe5 {[%clk 0:03:00.2]}
8... Nxe5 {[%clk 0:02:52.2]} 9. Nxe5 {[%clk 0:03:00.1]} 9... Bxe5 {[%clk
0:02:52.5]} 10. Nf3 {[%clk 0:02:59.4]} 10... Bc7 {[%clk 0:02:52.5]} 11. cxd5
{[%clk 0:02:57.2]} 11... Nxd5 {[%clk 0:02:50.6]} 12. a3 {[%clk 0:02:51.6]} 12...
O-O {[%clk 0:02:49.4]} 13. h3 {[%clk 0:02:51.4]} 13... h6 {[%clk 0:02:48]} 14.
Bc2 {[%clk 0:02:39.9]} 14... Re8 {[%clk 0:02:31.8]} 15. Qd3 {[%clk 0:02:37.8]}
15... Nf6 {[%clk 0:02:30.7]} 16. Qe2 {[%clk 0:02:27.7]} 16... Be6 {[%clk
0:02:26.3]} 17. Nd4 {[%clk 0:02:26.6]} 17... Bd5 {[%clk 0:02:21.8]} 18. Rd1
{[%clk 0:02:20.4]} 18... Qd6 {[%clk 0:02:17]} 19. f4 {[%clk 0:02:13.6]} 19...
Ne4 {[%clk 0:02:11.1]} 20. Qg4 {[%clk 0:01:50.1]} 20... Qg6 {[%clk 0:01:53.5]}
21. Qxg6 {[%clk 0:01:49.2]} 21... fxg6 {[%clk 0:01:53.7]} 22. b4 {[%clk
0:01:46.1]} 22... Bb6 {[%clk 0:01:34.1]} 23. Bb2 {[%clk 0:01:44.8]} 23... Rad8
{[%clk 0:01:31.8]} 24. Re1 {[%clk 0:01:41.6]} 24... g5 {[%clk 0:01:24.2]} 25.
fxg5 {[%clk 0:01:39.4]} 25... Nxg5 {[%clk 0:01:24.3]} 26. Rad1 {[%clk
0:01:38.9]} 26... Be4 {[%clk 0:01:19.3]} 27. Bb3+ {[%clk 0:01:27.7]} 27... Bd5
{[%clk 0:01:17.9]} 28. Ba4 {[%clk 0:01:23.4]} 28... Rf8 {[%clk 0:00:56.6]} 29.
Bc2 {[%clk 0:01:09.3]} 29... Rde8 {[%clk 0:00:52.2]} 30. Nf5 {[%clk 0:01:03.3]}
30... Be4 {[%clk 0:00:26]} 31. Bb3+ {[%clk 0:00:59.5]} 31... Bd5 {[%clk
0:00:22.8]} 32. Bxd5+ {[%clk 0:00:46.5]} 32... cxd5 {[%clk 0:00:23.2]} 33. Rxd5
{[%clk 0:00:44.2]} 33... Ne6 {[%clk 0:00:16.4]} 34. Nd4 {[%clk 0:00:36.1]} 34...
Nf4 {[%clk 0:00:13.2]} 35. Rd7 {[%clk 0:00:33.2]} 35... Nd3 {[%clk 0:00:13.2]}
36. Re2 {[%clk 0:00:21.9]} 36... Nxb2 {[%clk 0:00:13.4]} 37. Rxb2 {[%clk
0:00:21.3]} 37... Rxe3 {[%clk 0:00:13.3]} 38. Rd2 {[%clk 0:00:14.7]} 38... Rxa3
{[%clk 0:00:12.5]} 39. Kh2 {[%clk 0:00:13.1]} 39... Bxd4 {[%clk 0:00:08.5]} 40.
R2xd4 {[%clk 0:00:12.7]} 40... Rf7 {[%clk 0:00:08.3]} 41. Rxf7 {[%clk
0:00:12.6]} 41... Kxf7 {[%clk 0:00:08.5]} 42. Rd7+ {[%clk 0:00:13]} 42... Kg8
{[%clk 0:00:08.5]} 43. Rxb7 {[%clk 0:00:13.3]} 43... Ra4 {[%clk 0:00:08.4]}
1/2-1/2

[Event "Betsys MČR v online bleskovém šachu 2021"]
[Site "Chess.com"]
[Date "2021.04.17"]
[Round "11"]
[White "Stalri"]
[Black "Bolavey_Kotnik"]
[Result "0-1"]
[WhiteElo "2200"]
[BlackElo "2369"]
[TimeControl "180+1"]
[EndTime "10:50:21 PDT"]
[Termination "Uživatel Bolavey_Kotnik zvítězil matem"]

1. d4 {[%clk 0:03:00.9]} 1... Nf6 {[%clk 0:02:59.4]} 2. c4 {[%clk 0:03:00.3]}
2... d6 {[%clk 0:02:59.5]} 3. Nc3 {[%clk 0:03:00.3]} 3... Nbd7 {[%clk 0:03:00]}
4. e4 {[%clk 0:03:00.4]} 4... e5 {[%clk 0:03:00.4]} 5. Nf3 {[%clk 0:02:58.7]}
5... Be7 {[%clk 0:03:00.1]} 6. g3 {[%clk 0:02:59]} 6... O-O {[%clk 0:03:00]} 7.
Bg2 {[%clk 0:02:59.4]} 7... c6 {[%clk 0:03:00.6]} 8. O-O {[%clk 0:02:59.5]} 8...
a5 {[%clk 0:03:01.2]} 9. Re1 {[%clk 0:02:56.4]} 9... Qc7 {[%clk 0:03:01.4]} 10.
h3 {[%clk 0:02:55.6]} 10... Re8 {[%clk 0:02:56]} 11. Be3 {[%clk 0:02:54.6]}
11... Bf8 {[%clk 0:02:51.5]} 12. Rc1 {[%clk 0:02:54.6]} 12... a4 {[%clk
0:02:37.2]} 13. d5 {[%clk 0:02:19.5]} 13... c5 {[%clk 0:02:32.7]} 14. Nd2 {[%clk
0:02:06.5]} 14... g6 {[%clk 0:02:23]} 15. Nxa4 {[%clk 0:02:04.7]} 15... Qa5
{[%clk 0:02:07]} 16. Nc3 {[%clk 0:02:02.8]} 16... Qb4 {[%clk 0:01:40.3]} 17. a3
{[%clk 0:01:49]} 17... Qa5 {[%clk 0:01:25]} 18. Nb5 {[%clk 0:01:45.4]} 18... Qd8
{[%clk 0:01:01.9]} 19. Ra1 {[%clk 0:01:32.2]} 19... b6 {[%clk 0:01:01.2]} 20. b4
{[%clk 0:01:30.8]} 20... Ba6 {[%clk 0:01:00.9]} 21. Nc3 {[%clk 0:01:26]} 21...
Nh5 {[%clk 0:00:54]} 22. b5 {[%clk 0:01:22]} 22... Bb7 {[%clk 0:00:50.7]} 23. a4
{[%clk 0:01:22.1]} 23... Ng7 {[%clk 0:00:44]} 24. Nb3 {[%clk 0:01:20.2]} 24...
f5 {[%clk 0:00:41.9]} 25. Bd2 {[%clk 0:01:02.2]} 25... Be7 {[%clk 0:00:38.2]}
26. a5 {[%clk 0:00:35.2]} 26... bxa5 {[%clk 0:00:28.6]} 27. Na4 {[%clk
0:00:35.2]} 27... Rf8 {[%clk 0:00:26.5]} 28. Nxa5 {[%clk 0:00:29.3]} 28... Rxa5
{[%clk 0:00:21.4]} 29. Bxa5 {[%clk 0:00:30.2]} 29... Qxa5 {[%clk 0:00:21.6]} 30.
Nxc5 {[%clk 0:00:30.2]} 30... Qc7 {[%clk 0:00:17.6]} 31. Ne6 {[%clk 0:00:28.3]}
31... Nxe6 {[%clk 0:00:16.7]} 32. dxe6 {[%clk 0:00:26.4]} 32... Nc5 {[%clk
0:00:16.6]} 33. Ra7 {[%clk 0:00:21]} 33... Qb6 {[%clk 0:00:15]} 34. Qa1 {[%clk
0:00:20.7]} 34... fxe4 {[%clk 0:00:14.4]} 35. Qa5 {[%clk 0:00:11.6]} 35... Bd8
{[%clk 0:00:07.5]} 36. Qa3 {[%clk 0:00:10.8]} 36... Be7 {[%clk 0:00:06.8]} 37.
Qa1 {[%clk 0:00:10.5]} 37... Nd3 {[%clk 0:00:06.7]} 38. Re2 {[%clk 0:00:08.8]}
38... Rxf2 {[%clk 0:00:07]} 39. Rxf2 {[%clk 0:00:08]} 39... Qxf2+ {[%clk
0:00:07.9]} 40. Kh2 {[%clk 0:00:08.2]} 40... Qb6 {[%clk 0:00:08.4]} 41. Bxe4
{[%clk 0:00:05.4]} 41... Qf2+ {[%clk 0:00:07.2]} 42. Kh1 {[%clk 0:00:02.4]}
42... Bxe4# {[%clk 0:00:06.8]} 0-1

[Event "Betsys MČR v online bleskovém šachu 2021"]
[Site "Chess.com"]
[Date "2021.04.17"]
[Round "11"]
[White "MametevArtem097"]
[Black "Zavurka1975"]
[Result "0-1"]
[WhiteElo "1991"]
[BlackElo "2197"]
[TimeControl "180+1"]
[EndTime "10:50:21 PDT"]
[Termination "Uživatel Zavurka1975 zvítězil matem"]

1. d4 {[%clk 0:03:00.9]} 1... Nf6 {[%clk 0:02:28.6]} 2. Nc3 {[%clk 0:02:59.5]}
2... d5 {[%clk 0:02:28.2]} 3. Bf4 {[%clk 0:02:58]} 3... c6 {[%clk 0:02:28.1]} 4.
e3 {[%clk 0:02:54.2]} 4... Bf5 {[%clk 0:02:27.8]} 5. Nf3 {[%clk 0:02:53.8]} 5...
e6 {[%clk 0:02:27.8]} 6. Bd3 {[%clk 0:02:53.6]} 6... Bg6 {[%clk 0:02:27.2]} 7.
Bxg6 {[%clk 0:02:53.2]} 7... hxg6 {[%clk 0:02:26.5]} 8. Qd2 {[%clk 0:02:53.2]}
8... Bd6 {[%clk 0:02:25.8]} 9. Ne5 {[%clk 0:02:45.1]} 9... Qc7 {[%clk
0:02:16.1]} 10. O-O-O {[%clk 0:02:43.3]} 10... Nbd7 {[%clk 0:02:11.6]} 11. Nxd7
{[%clk 0:02:42.4]} 11... Nxd7 {[%clk 0:02:04.4]} 12. Bxd6 {[%clk 0:02:41.4]}
12... Qxd6 {[%clk 0:02:04.3]} 13. h3 {[%clk 0:02:41.7]} 13... O-O-O {[%clk
0:01:56.6]} 14. e4 {[%clk 0:02:40.8]} 14... Qb4 {[%clk 0:01:51]} 15. a3 {[%clk
0:02:38.5]} 15... Qa5 {[%clk 0:01:49.8]} 16. exd5 {[%clk 0:02:37.9]} 16... cxd5
{[%clk 0:01:48.1]} 17. Rhe1 {[%clk 0:02:20.6]} 17... Nb6 {[%clk 0:01:47.6]} 18.
Na2 {[%clk 0:02:15.5]} 18... Qxd2+ {[%clk 0:01:43]} 19. Rxd2 {[%clk 0:02:16.4]}
19... Nc4 {[%clk 0:01:42.6]} 20. Rde2 {[%clk 0:02:17]} 20... Rh5 {[%clk
0:01:33.8]} 21. Nb4 {[%clk 0:02:13.2]} 21... Rg5 {[%clk 0:01:28.2]} 22. f4
{[%clk 0:02:06.8]} 22... Rf5 {[%clk 0:01:09.5]} 23. Nd3 {[%clk 0:02:02.1]} 23...
Rh5 {[%clk 0:01:08.9]} 24. Ne5 {[%clk 0:01:57.9]} 24... Nxe5 {[%clk 0:01:04.7]}
25. fxe5 {[%clk 0:01:58.1]} 25... Kd7 {[%clk 0:00:59.7]} 26. Rf2 {[%clk
0:01:57.3]} 26... Rf5 {[%clk 0:00:56.1]} 27. Ref1 {[%clk 0:01:56.9]} 27... Ke7
{[%clk 0:00:54]} 28. g4 {[%clk 0:01:53.8]} 28... Rxf2 {[%clk 0:00:52.8]} 29.
Rxf2 {[%clk 0:01:54.7]} 29... g5 {[%clk 0:00:51.2]} 30. Kd2 {[%clk 0:01:52.4]}
30... f6 {[%clk 0:00:50.5]} 31. Kc3 {[%clk 0:01:43.5]} 31... Rc8+ {[%clk
0:00:48.2]} 32. Kd3 {[%clk 0:01:43.2]} 32... Rf8 {[%clk 0:00:34.4]} 33. b4
{[%clk 0:01:35.8]} 33... fxe5 {[%clk 0:00:32.4]} 34. Rxf8 {[%clk 0:01:35.1]}
34... e4+ {[%clk 0:00:32.5]} 35. Ke3 {[%clk 0:01:31.4]} 35... Kxf8 {[%clk
0:00:32.2]} 36. c4 {[%clk 0:01:31.4]} 36... Ke7 {[%clk 0:00:26.8]} 37. c5 {[%clk
0:01:31.5]} 37... Kd7 {[%clk 0:00:19.7]} 38. b5 {[%clk 0:01:30.2]} 38... Kc7
{[%clk 0:00:18.5]} 39. a4 {[%clk 0:01:24]} 39... Kb8 {[%clk 0:00:16.7]} 40. Ke2
{[%clk 0:01:06.9]} 40... Kc7 {[%clk 0:00:16.4]} 41. Ke3 {[%clk 0:01:03]} 41...
a6 {[%clk 0:00:16.4]} 42. b6+ {[%clk 0:01:02.6]} 42... Kc6 {[%clk 0:00:12.3]}
43. Ke2 {[%clk 0:01:02.2]} 43... e5 {[%clk 0:00:08.9]} 44. dxe5 {[%clk
0:00:58.2]} 44... Kxc5 {[%clk 0:00:08.2]} 45. Ke3 {[%clk 0:00:54.7]} 45... a5
{[%clk 0:00:05.9]} 46. Ke2 {[%clk 0:00:43.3]} 46... d4 {[%clk 0:00:05.2]} 47.
Kd2 {[%clk 0:00:43.3]} 47... Kd5 {[%clk 0:00:05.3]} 48. e6 {[%clk 0:00:43.8]}
48... Kxe6 {[%clk 0:00:05.2]} 49. Ke2 {[%clk 0:00:44.6]} 49... Kd5 {[%clk
0:00:05.5]} 50. Kd2 {[%clk 0:00:45.2]} 50... Kc4 {[%clk 0:00:05.8]} 51. Kc2
{[%clk 0:00:45.5]} 51... e3 {[%clk 0:00:05.8]} 52. Kd1 {[%clk 0:00:45.7]} 52...
d3 {[%clk 0:00:06.1]} 53. Ke1 {[%clk 0:00:45.9]} 53... Kc3 {[%clk 0:00:05.6]}
54. Kd1 {[%clk 0:00:46.2]} 54... d2 {[%clk 0:00:04.4]} 55. h4 {[%clk 0:00:43.6]}
55... gxh4 {[%clk 0:00:04.1]} 56. g5 {[%clk 0:00:43.6]} 56... Kd3 {[%clk
0:00:03.4]} 57. g6 {[%clk 0:00:42.8]} 57... e2# {[%clk 0:00:03.6]} 0-1

[Event "Betsys MČR v online bleskovém šachu 2021"]
[Site "Chess.com"]
[Date "2021.04.17"]
[Round "11"]
[White "Miky2610"]
[Black "JJ95"]
[Result "0-1"]
[WhiteElo "1816"]
[BlackElo "2015"]
[TimeControl "180+1"]
[EndTime "10:50:23 PDT"]
[Termination "Uživatel JJ95 zvítězil matem"]

1. c4 {[%clk 0:03:00.9]} 1... Nf6 {[%clk 0:02:57.9]} 2. Nc3 {[%clk 0:03:00.2]}
2... g5 {[%clk 0:02:58.2]} 3. d4 {[%clk 0:02:59.4]} 3... h6 {[%clk 0:02:58.1]}
4. g3 {[%clk 0:02:58.9]} 4... Bg7 {[%clk 0:02:58.3]} 5. Bg2 {[%clk 0:02:57.8]}
5... c5 {[%clk 0:02:58]} 6. e3 {[%clk 0:02:57.6]} 6... cxd4 {[%clk 0:02:57.8]}
7. exd4 {[%clk 0:02:56.9]} 7... d6 {[%clk 0:02:54.2]} 8. Nge2 {[%clk 0:02:56.1]}
8... Nc6 {[%clk 0:02:53.7]} 9. O-O {[%clk 0:02:54.2]} 9... O-O {[%clk
0:02:48.4]} 10. b3 {[%clk 0:02:48.8]} 10... Bf5 {[%clk 0:02:28.2]} 11. f4 {[%clk
0:02:44.2]} 11... g4 {[%clk 0:02:24.7]} 12. Re1 {[%clk 0:02:36]} 12... Rb8
{[%clk 0:02:14.5]} 13. Be3 {[%clk 0:02:28.7]} 13... Nb4 {[%clk 0:02:11]} 14. Nd5
{[%clk 0:01:46.5]} 14... Nc2 {[%clk 0:01:49.3]} 15. Nxf6+ {[%clk 0:01:37]} 15...
Bxf6 {[%clk 0:01:48.4]} 16. Nc3 {[%clk 0:01:28.8]} 16... Nxa1 {[%clk 0:01:13]}
17. Qxa1 {[%clk 0:01:27.3]} 17... e6 {[%clk 0:01:12.7]} 18. Qd1 {[%clk
0:01:19.2]} 18... a6 {[%clk 0:01:07.9]} 19. Na4 {[%clk 0:01:16]} 19... b5 {[%clk
0:01:03.6]} 20. Nb2 {[%clk 0:01:13.2]} 20... Qa5 {[%clk 0:00:56.8]} 21. cxb5
{[%clk 0:01:05.6]} 21... axb5 {[%clk 0:00:50.1]} 22. a4 {[%clk 0:01:00.2]} 22...
Qc3 {[%clk 0:00:41.8]} 23. Qe2 {[%clk 0:00:51.2]} 23... Qxb3 {[%clk 0:00:32.9]}
24. axb5 {[%clk 0:00:37.1]} 24... Rxb5 {[%clk 0:00:33.2]} 25. Nd1 {[%clk
0:00:34.6]} 25... Rc8 {[%clk 0:00:26.1]} 26. Nf2 {[%clk 0:00:21.5]} 26... h5
{[%clk 0:00:16]} 27. h3 {[%clk 0:00:20.1]} 27... Rc2 {[%clk 0:00:16.2]} 28. Qf1
{[%clk 0:00:19.5]} 28... Qb2 {[%clk 0:00:11.4]} 29. d5 {[%clk 0:00:13.8]} 29...
exd5 {[%clk 0:00:09.1]} 30. hxg4 {[%clk 0:00:12.5]} 30... hxg4 {[%clk
0:00:08.8]} 31. Nd3 {[%clk 0:00:09]} 31... Rxg2+ {[%clk 0:00:07.8]} 32. Qxg2
{[%clk 0:00:08.8]} 32... Qxg2+ {[%clk 0:00:08.1]} 33. Kxg2 {[%clk 0:00:08.7]}
33... Bxd3 {[%clk 0:00:09]} 34. Rd1 {[%clk 0:00:08.3]} 34... Rb2+ {[%clk
0:00:09.2]} 35. Rd2 {[%clk 0:00:08.3]} 35... Rxd2+ {[%clk 0:00:08.6]} 36. Bxd2
{[%clk 0:00:08.3]} 36... Be4+ {[%clk 0:00:08.6]} 37. Kf2 {[%clk 0:00:08.6]}
37... Kf8 {[%clk 0:00:08.7]} 38. Ke3 {[%clk 0:00:09.5]} 38... Ke7 {[%clk
0:00:09.3]} 39. f5 {[%clk 0:00:09.4]} 39... Bg5+ {[%clk 0:00:08.7]} 40. Ke2
{[%clk 0:00:09.2]} 40... Bxd2 {[%clk 0:00:09.1]} 41. Kxd2 {[%clk 0:00:09.5]}
41... Bxf5 {[%clk 0:00:09.6]} 42. Ke3 {[%clk 0:00:08.2]} 42... Be6 {[%clk
0:00:10.1]} 43. Kf4 {[%clk 0:00:08.5]} 43... Kf6 {[%clk 0:00:10.3]} 44. Ke3
{[%clk 0:00:08.5]} 44... Ke5 {[%clk 0:00:10.7]} 45. Kd3 {[%clk 0:00:08.4]} 45...
d4 {[%clk 0:00:10.8]} 46. Ke2 {[%clk 0:00:09.1]} 46... Ke4 {[%clk 0:00:11.2]}
47. Kd2 {[%clk 0:00:10]} 47... d3 {[%clk 0:00:11.6]} 48. Kd1 {[%clk 0:00:10.9]}
48... Ke3 {[%clk 0:00:11.9]} 49. Ke1 {[%clk 0:00:11.8]} 49... d2+ {[%clk
0:00:11.5]} 50. Kd1 {[%clk 0:00:12.7]} 50... Bb3# {[%clk 0:00:11.9]} 0-1

[Event "Betsys MČR v online bleskovém šachu 2021"]
[Site "Chess.com"]
[Date "2021.04.17"]
[Round "11"]
[White "Sandokanom"]
[Black "TCTCGTGCTATG"]
[Result "0-1"]
[WhiteElo "1761"]
[BlackElo "1926"]
[TimeControl "180+1"]
[EndTime "10:50:24 PDT"]
[Termination "Uživatel TCTCGTGCTATG zvítězil na čas"]

1. c4 {[%clk 0:03:00.9]} 1... Nf6 {[%clk 0:03:00.2]} 2. Nf3 {[%clk 0:03:00.7]}
2... g6 {[%clk 0:03:00.3]} 3. Nc3 {[%clk 0:03:01.6]} 3... Bg7 {[%clk 0:03:00.4]}
4. d4 {[%clk 0:03:01.6]} 4... O-O {[%clk 0:03:00.8]} 5. e4 {[%clk 0:03:01.6]}
5... d6 {[%clk 0:03:00.6]} 6. Bd3 {[%clk 0:02:59.2]} 6... c5 {[%clk 0:03:00.4]}
7. dxc5 {[%clk 0:02:57.7]} 7... dxc5 {[%clk 0:03:00.2]} 8. Be3 {[%clk 0:02:57]}
8... Qc7 {[%clk 0:02:51.2]} 9. O-O {[%clk 0:02:54.2]} 9... Be6 {[%clk
0:02:51.2]} 10. Qc2 {[%clk 0:02:49.4]} 10... b6 {[%clk 0:02:44.3]} 11. Rfd1
{[%clk 0:02:46.5]} 11... Nc6 {[%clk 0:02:43.9]} 12. a3 {[%clk 0:02:42.3]} 12...
a6 {[%clk 0:02:44]} 13. Nd5 {[%clk 0:02:37.9]} 13... Bxd5 {[%clk 0:02:40.9]} 14.
cxd5 {[%clk 0:02:31.7]} 14... Ne5 {[%clk 0:02:36.7]} 15. Nxe5 {[%clk 0:02:20.9]}
15... Qxe5 {[%clk 0:02:35.6]} 16. f4 {[%clk 0:02:14.4]} 16... Qc7 {[%clk
0:02:29.4]} 17. Rac1 {[%clk 0:02:07.9]} 17... Rfd8 {[%clk 0:02:26]} 18. b4
{[%clk 0:02:06.4]} 18... Ng4 {[%clk 0:02:10.1]} 19. Bf2 {[%clk 0:01:35.7]} 19...
Qxf4 {[%clk 0:02:05.9]} 20. Bg3 {[%clk 0:01:30.9]} 20... Bd4+ {[%clk 0:01:56.1]}
21. Kh1 {[%clk 0:01:27.1]} 21... Qg5 {[%clk 0:01:53.3]} 22. Qe2 {[%clk
0:01:03.9]} 22... Ne3 {[%clk 0:01:43.4]} 23. Re1 {[%clk 0:00:56.9]} 23... a5
{[%clk 0:01:35]} 24. Bc7 {[%clk 0:00:34.6]} 24... Rd7 {[%clk 0:01:23]} 25. Bxb6
{[%clk 0:00:23]} 25... axb4 {[%clk 0:01:19.8]} 26. axb4 {[%clk 0:00:22.3]} 26...
e6 {[%clk 0:01:00.7]} 27. Bxc5 {[%clk 0:00:19]} 27... Bxc5 {[%clk 0:00:55.6]}
28. Rxc5 {[%clk 0:00:16.6]} 28... Ng4 {[%clk 0:00:52.2]} 29. dxe6 {[%clk
0:00:13.3]} 29... Rxd3 {[%clk 0:00:43.7]} 30. Rxg5 {[%clk 0:00:11.9]} 30... Re3
{[%clk 0:00:36.8]} 31. Qf1 {[%clk 0:00:08.2]} 31... Ra2 {[%clk 0:00:32.5]} 32.
Rxe3 {[%clk 0:00:06.1]} 32... Nxe3 {[%clk 0:00:31.8]} 33. Qg1 {[%clk 0:00:05]}
33... Rd2 {[%clk 0:00:29.2]} 34. exf7+ {[%clk 0:00:04.4]} 34... Kf8 {[%clk
0:00:27.7]} 35. h4 {[%clk 0:00:04.2]} 35... Rd1 {[%clk 0:00:27.3]} 36. Kh2
{[%clk 0:00:01.7]} 36... Rxg1 {[%clk 0:00:22.6]} 37. Kxg1 {[%clk 0:00:02.6]}
37... Kxf7 {[%clk 0:00:22]} 38. Rb5 {[%clk 0:00:03]} 38... Nc4 {[%clk
0:00:21.8]} 39. Rb7+ {[%clk 0:00:02.7]} 39... Kg8 {[%clk 0:00:21.8]} 40. b5
{[%clk 0:00:03.3]} 40... Nd6 {[%clk 0:00:21.3]} 41. Rb8+ {[%clk 0:00:02.9]}
41... Kg7 {[%clk 0:00:20]} 42. e5 {[%clk 0:00:03.1]} 42... Nc4 {[%clk
0:00:17.3]} 43. b6 {[%clk 0:00:02.8]} 43... Kf7 {[%clk 0:00:17.1]} 44. b7 {[%clk
0:00:03]} 44... Nb6 {[%clk 0:00:16.9]} 45. Rh8 {[%clk 0:00:02.8]} 45... Nd7
{[%clk 0:00:15.2]} 46. b8=Q {[%clk 0:00:01.9]} 46... Ke6 {[%clk 0:00:15.7]} 47.
Rd8 {[%clk 0:00:01.5]} 47... Kf7 {[%clk 0:00:16.6]} 0-1

[Event "Betsys MČR v online bleskovém šachu 2021"]
[Site "Chess.com"]
[Date "2021.04.17"]
[Round "11"]
[White "prosinec"]
[Black "KarelZalesky"]
[Result "1-0"]
[WhiteElo "1769"]
[BlackElo "1808"]
[TimeControl "180+1"]
[EndTime "10:50:24 PDT"]
[Termination "Uživatel prosinec zvítězil na čas"]

1. Nf3 {[%clk 0:03:00.9]} 1... Nf6 {[%clk 0:02:57.8]} 2. c4 {[%clk 0:02:58.6]}
2... c5 {[%clk 0:02:54.6]} 3. Nc3 {[%clk 0:02:56]} 3... Nc6 {[%clk 0:02:53.5]}
4. g3 {[%clk 0:02:55.8]} 4... g6 {[%clk 0:02:51.8]} 5. Bg2 {[%clk 0:02:55]} 5...
Bg7 {[%clk 0:02:51.8]} 6. O-O {[%clk 0:02:54.6]} 6... O-O {[%clk 0:02:51.5]} 7.
d4 {[%clk 0:02:53.2]} 7... cxd4 {[%clk 0:02:50]} 8. Nxd4 {[%clk 0:02:54.1]} 8...
Nxd4 {[%clk 0:02:39.6]} 9. Qxd4 {[%clk 0:02:55]} 9... d6 {[%clk 0:02:36.3]} 10.
e4 {[%clk 0:02:48.7]} 10... Nd7 {[%clk 0:02:34]} 11. Qd2 {[%clk 0:02:42.9]}
11... Nb6 {[%clk 0:02:33.1]} 12. b3 {[%clk 0:02:40.2]} 12... Bd7 {[%clk
0:02:28.4]} 13. Bb2 {[%clk 0:02:39.2]} 13... Bc6 {[%clk 0:02:26.5]} 14. Nd5
{[%clk 0:02:37.2]} 14... Bxd5 {[%clk 0:02:08.8]} 15. exd5 {[%clk 0:02:36.1]}
15... Nd7 {[%clk 0:02:05]} 16. f4 {[%clk 0:02:29.2]} 16... b5 {[%clk 0:01:56.3]}
17. Bxg7 {[%clk 0:02:18.7]} 17... Kxg7 {[%clk 0:01:54]} 18. Qd4+ {[%clk
0:02:17.8]} 18... Kg8 {[%clk 0:01:34.6]} 19. cxb5 {[%clk 0:02:15.8]} 19... Qb6
{[%clk 0:01:16.2]} 20. Qxb6 {[%clk 0:02:13.2]} 20... axb6 {[%clk 0:01:16.4]} 21.
a4 {[%clk 0:02:09.3]} 21... Nc5 {[%clk 0:01:14.5]} 22. Rab1 {[%clk 0:02:04.9]}
22... Kg7 {[%clk 0:01:09.8]} 23. Rfe1 {[%clk 0:02:04.2]} 23... Ra7 {[%clk
0:01:07.7]} 24. Bh3 {[%clk 0:01:54.3]} 24... h5 {[%clk 0:00:59.9]} 25. Re3
{[%clk 0:01:52.7]} 25... f5 {[%clk 0:00:43.3]} 26. Rbe1 {[%clk 0:01:50.9]} 26...
Kf7 {[%clk 0:00:35.4]} 27. Bf1 {[%clk 0:01:42.5]} 27... Ne4 {[%clk 0:00:28.9]}
28. Bc4 {[%clk 0:01:36]} 28... Kf6 {[%clk 0:00:19.9]} 29. Rxe4 {[%clk
0:01:33.2]} 29... fxe4 {[%clk 0:00:19.5]} 30. Rxe4 {[%clk 0:01:34.1]} 30... Rc7
{[%clk 0:00:17.9]} 31. Re6+ {[%clk 0:01:33.3]} 31... Kf7 {[%clk 0:00:17]} 32.
Kf2 {[%clk 0:01:31.5]} 32... Rg8 {[%clk 0:00:16.6]} 33. Ke3 {[%clk 0:01:25.9]}
33... Rcc8 {[%clk 0:00:14.8]} 34. Kd4 {[%clk 0:01:24.9]} 34... Rce8 {[%clk
0:00:13.2]} 35. b4 {[%clk 0:01:23.6]} 35... Ra8 {[%clk 0:00:11.9]} 36. Bb3
{[%clk 0:01:23.1]} 36... Rgc8 {[%clk 0:00:11]} 37. Re3 {[%clk 0:01:19.7]} 37...
Rc1 {[%clk 0:00:10]} 38. Rc3 {[%clk 0:01:14.6]} 38... Rh1 {[%clk 0:00:09.7]} 39.
Rc6 {[%clk 0:01:08.4]} 39... Rb8 {[%clk 0:00:07.5]} 40. Bc4 {[%clk 0:01:03.3]}
40... Rxh2 {[%clk 0:00:07.3]} 41. a5 {[%clk 0:00:58.8]} 41... bxa5 {[%clk
0:00:05.8]} 42. bxa5 {[%clk 0:00:59.7]} 42... Rh3 {[%clk 0:00:04.2]} 43. a6
{[%clk 0:00:52.6]} 43... Rxg3 {[%clk 0:00:04]} 44. a7 {[%clk 0:00:51.3]} 44...
Ra8 {[%clk 0:00:04.2]} 45. b6 {[%clk 0:00:48.4]} 45... Rg4 {[%clk 0:00:02.5]}
46. Ke4 {[%clk 0:00:44.9]} 46... g5 {[%clk 0:00:01.9]} 47. b7 {[%clk 0:00:28.6]}
47... Rxf4+ {[%clk 0:00:02.1]} 48. Kd3 {[%clk 0:00:27.3]} 48... Rxa7 {[%clk
0:00:02.3]} 49. b8=Q {[%clk 0:00:26.5]} 49... Ra3+ {[%clk 0:00:01.9]} 50. Bb3
{[%clk 0:00:23.3]} 1-0